bitfinex-derivatives/quotes_ETHF0:USTF0_20250411
["timestamp","ask_amount","ask_price","bid_price","bid_amount"]
[1744349284748,1.6974,1549.3,1549.1,1.29202]
[1744349285651,2.98934,1549.3,1549.1,1.29202]
[1744349285950,1.6974,1549.2,1549.0,2.86079]
[1744349286352,0.8468,1549.1,1549.0,2.86079]
[1744349287552,1.6974,1549.2,1549.1,1.29207]
[1744349287745,3.2078,1549.4,1549.3,1.29191]
[1744349288051,2.4945,1549.4,1549.3,1.29191]
[1744349288747,1.29194,1549.3,1549.1,1.727]
[1744349288954,1.654,1549.3,1549.1,1.727]
[1744349289252,1.654,1549.3,1549.2,1.29199]
[1744349292453,2.4481,1549.3,1549.0,4.49991]
[1744349292750,2.4481,1549.3,1549.1,1.29207]
[1744349292751,3.74006,1549.3,1549.1,1.29207]
[1744349292952,1.7101,1549.2,1549.1,1.29207]
[1744349293153,3.00209,1549.2,1549.0,4.49991]
[1744349293354,0.8077,1549.1,1549.0,4.49991]
[1744349293556,2.5178,1549.1,1549.0,4.49991]
[1744349294752,2.5178,1549.1,1549.0,2.86001]
[1744349295852,2.5178,1549.1,1549.0,1.29211]
[1744349296350,3.80991,1549.1,1548.9,5.80121]
[1744349296553,1.7012,1549.0,1548.9,5.80121]
[1744349297058,1.7012,1549.0,1548.9,1.29221]
[1744349297953,2.99336,1549.0,1548.8,2.86016]
[1744349298155,1.7012,1549.0,1548.9,1.29224]
[1744349298456,4.909,1549.0,1548.7,4.51870968]
[1744349298650,2.14528,1548.9,1548.7,1.30209968]
[1744349298849,3.78061,1548.9,1548.7,1.30210968]
[1744349299052,2.4173,1548.8,1548.7,1.30210968]
[1744349300154,2.4173,1548.8,1548.7,3.00560968]
[1744349300758,0.782,1548.8,1548.7,3.00560968]
[1744349301956,0.782,1548.8,1548.7,0.00970968]
[1744349302164,2.3617,1548.8,1548.7,0.00970968]
[1744349302362,6.86182,1548.8,1548.7,0.00970968]
[1744349302561,5.5695,1548.8,1548.7,0.00970968]
[1744349304060,5.5695,1548.8,1548.7,1.30211968]
[1744349304661,2.3617,1548.8,1548.7,1.30211968]
[1744349305359,2.3617,1548.8,1548.7,0.00970968]
[1744349305560,2.3617,1548.8,1548.7,1.30211968]
[1744349307053,0.782,1548.8,1548.7,1.30211968]
[1744349307366,1.29218,1549.0,1548.8,1.29229]
[1744349307662,1.5775,1548.9,1548.8,1.29229]
[1744349308964,3.2078,1549.0,1548.9,1.29224]
[1744349309160,4.9116,1549.0,1548.9,1.29224]
[1744349310463,1.7038,1549.0,1548.9,1.29224]
[1744349310662,4.0332,1549.1,1549.0,1.29216]
[1744349311361,4.0332,1549.1,1549.0,2.92196]
[1744349311555,4.0332,1549.1,1549.0,1.29216]
[1744349311849,5.737,1549.1,1549.0,1.29216]
[1744349312052,3.2078,1549.1,1549.0,1.29216]
[1744349312250,3.2078,1549.1,1549.0,2.97526]
[1744349312463,6.97673,1549.3,1549.0,2.97526]
[1744349312761,2.94229,1549.2,1549.0,2.97519]
[1744349312960,1.6503,1549.1,1549.0,2.97526]
[1744349313659,5.6848,1549.3,1549.2,1.29199]
[1744349314061,6.97671,1549.3,1549.2,1.29199]
[1744349314562,5.6848,1549.3,1549.2,1.29199]
[1744349314759,0.8267,1549.3,1549.2,1.29199]
[1744349314961,2.11864,1549.3,1549.1,2.97511]
[1744349315258,0.8267,1549.3,1549.2,1.29199]
[1744349315566,0.8267,1549.3,1549.2,3.00019]
[1744349316266,2.4734,1549.3,1549.2,3.00019]
[1744349316468,3.2078,1549.5,1549.2,4.93816]
[1744349316666,3.2078,1549.5,1549.4,1.29182]
[1744349316871,3.19471849,1549.5,1549.4,1.29182]
[1744349317165,4.84141849,1549.5,1549.4,1.29182]
[1744349317565,4.84141849,1549.5,1549.4,3.00002]
[1744349318567,3.19471849,1549.5,1549.4,3.00002]
[1744349319268,1.6462,1549.6,1549.5,1.29174]
[1744349319459,1.6462,1549.6,1549.5,2.94544]
[1744349319953,4.8719,1549.7,1549.5,2.94544]
[1744349320167,3.3103,1549.7,1549.6,2.94536]
[1744349321664,3.2078,1550.0,1549.6,1.6537]
[1744349321869,2.4472,1549.9,1549.8,1.29144]
[1744349322360,2.4472,1549.9,1549.8,1.29149]
[1744349322961,3.2078,1550.0,1549.9,1.29141]
[1744349323165,3.2078,1550.4,1550.0,3.22832]
[1744349323467,17.5750471,1550.5,1550.3,1.29102]
[1744349323468,20.0367471,1550.5,1550.3,1.29102]
[1744349323670,3.2078,1550.4,1550.2,5.79908]
[1744349323865,4.8448,1550.4,1550.3,1.29107]
[1744349324066,4.8448,1550.4,1550.3,2.88557]
[1744349324667,3.2078,1550.4,1550.3,2.88557]
[1744349324865,17.5750471,1550.5,1550.4,1.29099]
[1744349325066,17.5750471,1550.5,1550.4,1.6615]
[1744349325370,19.2177471,1550.5,1550.3,1.30069804]
[1744349325669,17.5750471,1550.5,1550.4,1.29099]
[1744349326570,17.5750471,1550.5,1550.3,1.67117804]
[1744349326769,1.6427,1550.4,1550.3,2.96224804]
[1744349326970,17.5750471,1550.5,1550.4,1.29099]
[1744349327164,5.7097,1550.7,1550.5,1.29091]
[1744349327362,2.5019,1550.7,1550.6,2.95232]
[1744349327564,5.7097,1550.7,1550.6,1.6615]
[1744349328271,5.7097,1550.7,1550.6,2.95232]
[1744349329069,1.29082,1550.6,1550.3,1.30068804]
[1744349329276,2.96232,1550.6,1550.4,1.29099]
[1744349329568,0.8436,1550.5,1550.4,1.29099]
[1744349329771,2.5151,1550.5,1550.4,1.29099]
[1744349329969,4.067,1550.7,1550.6,1.29082]
[1744349330464,0.8592,1550.7,1550.6,1.29082]
[1744349330665,2.5039,1550.8,1550.7,1.29074]
[1744349330867,3.2078,1551.5,1550.8,3.22665]
[1744349331173,3.2078,1551.2,1550.9,10.1053]
[1744349331366,6.13431,1551.5,1551.2,1.2903]
[1744349331669,3.2078,1551.5,1551.0,1.5652]
[1744349331879,3.2078,1551.5,1551.4,1.29016]
[1744349332266,22.6797319,1551.6,1551.5,1.29008]
[1744349332470,22.6797319,1551.6,1551.5,1.5652]
[1744349332665,1.29008,1551.5,1551.4,40.8]
[1744349332870,1.29024,1551.3,1551.2,0.00967804]
[1744349333269,6.13442,1551.4,1551.2,0.00967804]
[1744349333566,2.92664,1551.3,1551.2,0.00967804]
[1744349334462,1.6364,1551.3,1551.2,0.00967804]
[1744349334667,1.6364,1551.3,1551.2,1.30000804]
[1744349336575,1.6364,1551.3,1551.2,0.00967804]
[1744349336975,1.6364,1551.3,1551.2,1.69637804]
[1744349337472,2.92664,1551.3,1551.2,1.69637804]
[1744349337668,2.92664,1551.3,1551.2,0.00967804]
[1744349339577,7.92664,1551.3,1551.2,0.00967804]
[1744349339978,1.29041,1551.1,1551.0,40.8]
[1744349340274,1.2905,1551.0,1550.8,6.18515]
[1744349340479,1.29074,1550.7,1550.5,5.79388]
[1744349340785,1.6369,1550.6,1550.5,5.79388]
[1744349340981,1.29068,1550.8,1550.6,1.29082]
[1744349341166,1.64647259,1550.7,1550.6,1.29082]
[1744349341375,2.93721259,1550.7,1550.6,40.8]
[1744349343181,6.14501259,1550.7,1550.6,40.8]
[1744349343981,4.37786458,1550.7,1550.6,40.8]
[1744349344184,3.2078,1550.7,1550.6,42.09082]
[1744349344480,4.49854,1550.7,1550.6,40.8]
[1744349345275,1.29091,1550.5,1550.4,0.00967804]
[1744349345883,4.49871,1550.5,1550.4,0.00967804]
[1744349347378,9.49871,1550.5,1550.4,0.00967804]
[1744349347580,14.00171,1550.5,1550.4,0.00967804]
[1744349347785,14.83161,1550.5,1550.4,0.00967804]
[1744349348283,9.83161,1550.5,1550.4,0.00967804]
[1744349350883,5.32861,1550.5,1550.4,0.00967804]
[1744349351283,6.93241,1550.5,1550.4,0.00967804]
[1744349352678,7.75301,1550.5,1550.4,0.00967804]
[1744349358187,3.2078,1550.7,1550.5,1.29087]
[1744349358490,4.4986,1550.7,1550.5,1.29087]
[1744349359790,3.2078,1550.7,1550.5,1.29087]
[1744349360090,1.29086,1550.6,1550.4,1.30060804]
[1744349361189,4.9328,1550.7,1550.4,0.00967804]
[1744349362091,4.49859,1550.7,1550.6,1.29082]
[1744349362395,3.2078,1550.7,1550.6,1.29082]
[1744349362787,3.2078,1550.7,1550.4,0.00967804]
[1744349362992,1.29088,1550.6,1550.4,1.30063804]
[1744349363396,6.1503,1550.7,1550.4,1.30063804]
[1744349363593,1.29085,1550.6,1550.4,1.30063804]
[1744349363799,1.29085,1550.6,1550.4,0.00967804]
[1744349364298,1.29091,1550.5,1550.4,0.00967804]
[1744349364597,5.34301,1550.5,1550.4,0.00967804]
[1744349364791,4.0521,1550.5,1550.4,0.00967804]
[1744349365189,5.34301,1550.5,1550.4,0.00967804]
[1744349365389,4.0521,1550.5,1550.4,0.00967804]
[1744349366297,5.34301,1550.5,1550.4,0.00967804]
[1744349368093,7.03701,1550.5,1550.4,0.00967804]
[1744349371193,4.0521,1550.5,1550.4,1.30066804]
[1744349371998,5.34301,1550.5,1550.4,1.30066804]
[1744349372799,4.0521,1550.5,1550.4,1.30066804]
[1744349373092,5.34301,1550.5,1550.4,1.30066804]
[1744349373293,5.34301,1550.5,1550.4,0.00967804]
[1744349373998,6.95281,1550.5,1550.4,0.00967804]
[1744349374395,4.0521,1550.5,1550.4,1.30066804]
[1744349375900,3.2078,1550.5,1550.4,1.30066804]
[1744349376294,3.2078,1550.5,1550.4,3.02696804]
[1744349378705,4.49871,1550.5,1550.4,1.73597804]
[1744349378997,3.2078,1550.5,1550.4,3.02696804]
[1744349380102,3.2078,1550.5,1550.4,8.86574136]
[1744349380299,4.49672,1550.8,1550.4,8.86574136]
[1744349380501,7.70452,1550.8,1550.6,1.29075]
[1744349380696,7.70452,1550.8,1550.7,1.6756]
[1744349381411,7.70452,1550.8,1550.7,2.96634]
[1744349382606,3.9992,1550.8,1550.7,2.96634]
[1744349382807,3.2078,1550.8,1550.7,2.96634]
[1744349383010,9.466,1551.0,1550.9,1.29057]
[1744349383398,9.14429,1551.0,1550.9,1.29057]
[1744349384311,9.466,1551.0,1550.9,1.29057]
[1744349384725,1.29057,1550.9,1550.7,1.29072]
[1744349384925,3.2078,1550.8,1550.7,1.29072]
[1744349385429,2.4346,1550.9,1550.8,1.29066]
[1744349386526,3.72517,1550.9,1550.8,1.29066]
[1744349387327,2.4346,1550.9,1550.8,1.29066]
[1744349388332,3.7252,1550.9,1550.7,2.88828]
[1744349388832,6.06716,1550.8,1550.7,1.5976]
[1744349389429,1.29074,1550.7,1550.6,1.29076]
[1744349389626,2.85944,1550.7,1550.6,2.89046]
[1744349390232,1.5687,1550.7,1550.6,2.89046]
[1744349390831,2.85944,1550.7,1550.6,2.89046]
[1744349391026,0.8577,1550.7,1550.6,2.89046]
[1744349392827,2.14844,1550.7,1550.6,2.89046]
[1744349393027,2.14844,1550.7,1550.6,2.89052]
[1744349393324,3.82724,1550.7,1550.6,2.89052]
[1744349393530,2.5365,1550.7,1550.6,2.89052]
[1744349393731,3.82724,1550.7,1550.6,2.89052]
[1744349393935,3.82724,1550.7,1550.4,11.35332064]
[1744349393936,1.29091,1550.5,1550.4,11.35332064]
[1744349394123,3.80309,1550.6,1550.5,1.6563]
[1744349394324,7.01089,1550.6,1550.5,2.94721]
[1744349394534,5.72,1550.6,1550.5,2.94721]
[1744349394925,3.2078,1550.6,1550.5,2.94721]
[1744349395126,4.49862,1550.6,1550.5,2.94721]
[1744349395436,6.14152,1550.6,1550.5,1.6563]
[1744349396037,3.2078,1550.6,1550.5,2.94721]
[1744349396732,5.33192,1550.8,1550.7,1.29074]
[1744349396938,5.33192,1550.8,1550.6,1.5792]
[1744349397238,4.0412,1550.8,1550.6,2.87001]
[1744349397437,1.29074,1550.7,1550.6,2.87001]
[1744349398338,1.29074,1550.7,1550.6,1.5792]
[1744349398638,2.88104,1550.7,1550.6,1.5792]
[1744349398936,2.88104,1550.7,1550.6,2.87002]
[1744349399531,2.88104,1550.7,1550.6,1.5792]
[1744349400532,5.33192,1550.8,1550.6,1.5792]
[1744349400732,1.29074,1550.7,1550.6,2.86996]
[1744349400933,5.33192,1550.8,1550.6,2.86996]
[1744349401136,5.33192,1550.8,1550.7,1.5739]
[1744349401538,4.0412,1550.8,1550.5,1.29083]
[1744349401739,1.29082,1550.6,1550.5,2.86473]
[1744349402940,4.0412,1550.8,1550.5,1.5739]
[1744349403139,4.0675,1551.0,1550.9,1.29057]
[1744349403445,2.4585,1551.1,1551.0,1.29049]
[1744349403641,2.4585,1551.1,1550.8,2.57]
[1744349403843,1.29051,1551.0,1550.9,1.7033]
[1744349404047,4.49831,1551.0,1550.9,1.7033]
[1744349404340,6.15511,1551.0,1550.9,1.7033]
[1744349405038,4.8646,1551.0,1550.9,2.99387]
[1744349405248,3.2078,1551.0,1550.9,2.99387]
[1744349405744,3.2078,1551.0,1550.9,3.11077]
[1744349406346,3.2078,1551.0,1550.9,2.99387]
[1744349406644,0.863,1551.3,1551.1,1.29035]
[1744349406836,2.15324,1551.3,1551.2,1.7172]
[1744349407031,2.4759,1551.3,1551.2,3.00753]
[1744349407237,0.863,1551.3,1551.2,3.00753]
[1744349407743,3.2078,1551.4,1551.3,1.29024]
[1744349407943,3.2078,1551.4,1551.3,3.00744]
[1744349409147,3.2078,1551.4,1551.3,1.7172]
[1744349409538,4.8207,1551.4,1551.3,1.7172]
[1744349409738,4.8207,1551.4,1551.3,3.00744]
[1744349410146,4.8207,1551.4,1551.3,1.7172]
[1744349410339,4.8207,1551.4,1551.3,3.00744]
[1744349410538,3.2078,1551.4,1551.3,3.00744]
[1744349413547,1.29024,1551.3,1551.2,0.00967804]
[1744349413752,3.00024,1551.3,1551.2,0.00967804]
[1744349415050,3.00024,1551.3,1551.2,1.30000804]
[1744349415251,3.00024,1551.3,1551.2,2.91860804]
[1744349415745,1.71,1551.3,1551.2,2.91860804]
[1744349416055,3.00024,1551.3,1551.2,2.91860804]
[1744349416255,3.00024,1551.3,1551.2,1.62827804]
[1744349416854,1.71,1551.3,1551.2,2.91860804]
[1744349417553,3.00024,1551.3,1551.2,2.91860804]
[1744349417753,3.00024,1551.3,1551.2,1.62827804]
[1744349418449,3.00024,1551.3,1551.2,0.00967804]
[1744349419254,1.71,1551.3,1551.2,0.00967804]
[1744349419452,3.3558,1551.5,1551.4,1.29016]
[1744349419653,3.2078,1551.6,1551.5,1.29008]
[1744349419854,3.2078,1551.6,1551.4,1.29009]
[1744349420055,1.29008,1551.5,1551.4,1.6151]
[1744349420253,1.29023,1551.4,1551.2,0.00967804]
[1744349420459,5.30612,1551.4,1551.2,2.91508804]
[1744349420649,5.30612,1551.4,1551.2,2.91507804]
[1744349421051,5.30612,1551.4,1551.2,1.29997804]
[1744349421258,5.30608,1551.4,1551.2,0.00967804]
[1744349421558,4.0159,1551.4,1551.3,1.29024]
[1744349421859,4.0159,1551.4,1551.3,2.90534]
[1744349422357,5.30606,1551.4,1551.3,1.6151]
[1744349422556,7.02446,1551.4,1551.3,1.6151]
[1744349423251,1.29024,1551.3,1551.2,1.29997804]
[1744349423557,3.82054,1551.3,1551.2,1.29997804]
[1744349424056,2.5303,1551.3,1551.2,1.29997804]
[1744349425861,0.8119,1551.3,1551.2,1.29997804]
[1744349426157,0.8119,1551.3,1551.2,1.30000804]
[1744349426961,4.0159,1551.4,1551.2,1.30000804]
[1744349427357,1.29024,1551.3,1551.2,0.00967804]
[1744349427659,3.01404,1551.3,1551.2,0.00967804]
[1744349429861,3.01404,1551.3,1551.2,3.01440804]
[1744349430558,3.01404,1551.3,1551.2,1.72407804]
[1744349430759,3.01404,1551.3,1551.2,3.01440804]
[1744349431863,1.7238,1551.3,1551.2,3.01440804]
[1744349432057,9.85311,1551.4,1551.2,3.01440804]
[1744349432263,9.85311,1551.4,1551.3,2.90014]
[1744349432460,4.0159,1551.4,1551.3,2.90014]
[1744349432759,5.30606,1551.4,1551.3,2.90014]
[1744349433650,4.0159,1551.4,1551.3,2.90014]
[1744349433853,5.30606,1551.4,1551.3,1.6099]
[1744349435065,5.30606,1551.4,1551.3,2.90014]
[1744349435266,5.30606,1551.4,1551.3,1.6099]
[1744349436165,1.29024,1551.3,1551.2,0.00967804]
[1744349436366,3.01664,1551.3,1551.2,1.68087804]
[1744349436665,3.01664,1551.3,1551.2,2.97120804]
[1744349436861,3.01664,1551.3,1551.2,1.68087804]
[1744349437959,3.01664,1551.3,1551.2,0.00967804]
[1744349438667,3.01664,1551.3,1551.2,1.70187804]
[1744349440464,3.01664,1551.3,1551.2,0.00967804]
[1744349442164,8.01664,1551.3,1551.2,0.00967804]
[1744349442965,3.01664,1551.3,1551.2,0.00967804]
[1744349448471,3.01664,1551.3,1551.2,1.68577804]
[1744349449773,5.30606,1551.4,1551.3,1.29024]
[1744349450074,4.0159,1551.4,1551.3,1.29024]
[1744349450371,4.0159,1551.4,1551.3,2.12344]
[1744349450765,4.06,1551.6,1551.5,1.29008]
[1744349450965,5.35002,1551.6,1551.4,1.5725]
[1744349451265,4.06,1551.6,1551.5,1.29008]
[1744349451465,5.34999,1551.6,1551.5,1.29008]
[1744349451669,5.34999,1551.6,1551.4,1.5725]
[1744349452163,4.06,1551.6,1551.5,1.29008]
[1744349453375,4.06,1551.6,1551.4,2.8626]
[1744349453571,5.7412,1551.6,1551.4,2.8626]
[1744349453772,7.03125,1551.6,1551.5,1.6263]
[1744349454066,4.49779,1551.6,1551.5,1.6263]
[1744349454269,7.04399,1551.6,1551.5,1.6263]
[1744349459277,4.0728,1551.6,1551.5,2.91638]
[1744349459879,3.2078,1551.6,1551.5,2.91638]
[1744349460474,4.49779,1551.6,1551.5,1.6263]
[1744349460679,6.22079,1551.6,1551.5,1.6263]
[1744349460877,0.8061,1551.7,1551.5,1.6263]
[1744349461071,5.32117,1551.8,1551.6,1.28999]
[1744349461382,5.32117,1551.8,1551.7,1.655]
[1744349461677,6.99387,1551.8,1551.7,1.655]
[1744349462079,6.99387,1551.8,1551.7,2.94491]
[1744349462380,3.2078,1551.8,1551.7,2.94491]
[1744349463275,4.49763,1551.8,1551.7,1.655]
[1744349463482,6.17033,1551.8,1551.7,1.655]
[1744349463779,4.8805,1551.8,1551.7,2.94491]
[1744349464276,4.8805,1551.8,1551.7,1.655]
[1744349464479,3.2078,1551.8,1551.7,2.94491]
[1744349464679,0.8012,1552.0,1551.7,1.655]
[1744349464981,40.254779,1552.2,1552.1,1.28958]
[1744349465383,20.7828471,1552.4,1552.2,1.28941]
[1744349465573,20.7828471,1552.4,1552.0,1.64037804]
[1744349465781,2.4899,1552.3,1552.1,40.8]
[1744349466081,17.5750471,1552.4,1552.3,1.28941]
[1744349466476,3.71816169,1552.5,1552.4,1.28933]
[1744349466671,22.6797319,1552.6,1552.5,1.28924]
[1744349466870,21.5087519,1552.6,1552.5,7.28124]
[1744349467079,18.9621719,1552.6,1552.5,53.08124]
[1744349467279,11.21539472,1552.6,1552.5,53.91428475]
[1744349467491,5.88919493,1552.6,1552.5,53.91428475]
[1744349467787,2.14664493,1552.6,1552.5,53.91428475]
[1744349467976,1.0,1553.0,1552.9,1.28891]
[1744349468173,1.0,1553.0,1552.6,3.22273]
[1744349468174,6.9325471,1552.9,1552.7,5.992]
[1744349468378,6.9325471,1552.9,1552.8,0.00967804]
[1744349468379,19.8208071,1552.9,1552.8,0.00967804]
[1744349468578,11.5993,1552.9,1552.8,0.00967804]
[1744349468778,18.5318471,1552.9,1552.8,0.00967804]
[1744349468979,19.8207571,1552.9,1552.8,0.00967804]
[1744349469184,20.6851571,1552.9,1552.8,0.00967804]
[1744349469480,1.28916,1552.6,1552.5,30.8]
[1744349469683,1.28924,1552.5,1552.4,10.0526526]
[1744349469875,9.3514471,1552.5,1552.4,10.0526526]
[1744349471074,10.6406871,1552.5,1552.4,10.0526526]
[1744349472993,1.28933,1552.4,1552.3,0.00967804]
[1744349473180,13.0110771,1552.4,1552.3,0.00967804]
[1744349473786,11.7217471,1552.4,1552.3,0.00967804]
[1744349474090,13.8575771,1552.4,1552.3,0.00967804]
[1744349474288,12.5682471,1552.4,1552.3,0.00967804]
[1744349474490,13.8575771,1552.4,1552.3,0.00967804]
[1744349474691,11.7217471,1552.4,1552.3,0.00967804]
[1744349474898,13.0110771,1552.4,1552.3,0.00967804]
[1744349475984,1.28941,1552.3,1552.2,40.8]
[1744349476183,15.1789571,1552.3,1552.2,40.8]
[1744349476384,20.1789571,1552.3,1552.2,40.8]
[1744349476586,20.6859989,1552.3,1552.2,40.8]
[1744349476780,20.1789571,1552.3,1552.2,40.8]
[1744349476985,15.1789571,1552.3,1552.2,40.8]
[1744349477186,1.28949,1552.2,1552.1,0.00967804]
[1744349477386,13.0018371,1552.2,1552.1,0.00967804]
[1744349477586,13.0018371,1552.2,1552.1,40.80967804]
[1744349477991,13.0018371,1552.2,1552.1,0.00967804]
[1744349478200,13.0018371,1552.2,1551.6,16.0446526]
[1744349478201,1.28988,1551.8,1551.6,10.0526526]
[1744349478388,1.572,1551.7,1551.6,11.3426226]
[1744349478692,1.572,1551.7,1551.6,52.1426226]
[1744349478886,1.572,1551.7,1551.6,57.1426226]
[1744349479286,1.572,1551.7,1551.6,47.08997]
[1744349479489,0.00967804,1551.8,1551.7,1.28991]
[1744349479793,1.59187804,1551.8,1551.7,1.28991]
[1744349480391,1.59187804,1551.8,1551.7,6.28991]
[1744349480700,9.81425514,1551.8,1551.6,42.08993]
[1744349480887,6.9325471,1551.7,1551.6,42.08993]
[1744349481186,8.5147471,1551.7,1551.6,42.08993]
[1744349481494,0.00967804,1551.8,1551.7,1.28991]
[1744349481692,1.5822,1552.1,1551.7,3.2078]
[1744349481886,1.5822,1552.1,1551.9,1.28968]
[1744349482087,8.5147471,1552.1,1552.0,1.28966]
[1744349482884,1.28968,1552.0,1551.8,1.28978]
[1744349483089,1.644,1551.9,1551.8,1.28978]
[1744349483593,1.644,1551.9,1551.8,6.28978]
[1744349484597,2.15599,1552.1,1551.9,1.2897]
[1744349484794,10.1403471,1552.0,1551.7,9.1998]
[1744349485095,1.28983,1551.8,1551.7,5.992]
[1744349485486,8.2223771,1551.8,1551.7,5.992]
[1744349485689,6.9325471,1551.8,1551.7,7.28191]
[1744349486899,2.09699,1551.9,1551.7,7.28191]
[1744349487098,9.0295371,1551.9,1551.7,7.28191]
[1744349487396,9.0295371,1551.9,1551.7,1.28991]
[1744349487799,2.09699,1551.9,1551.8,1.28983]
[1744349487999,1.28983,1551.8,1551.7,1.28988]
[1744349488203,9.9109771,1551.8,1551.6,42.08995]
[1744349488498,8.6211471,1551.8,1551.6,42.08995]
[1744349488702,2.93141,1551.7,1551.6,40.8]
[1744349488903,9.8639571,1551.7,1551.6,40.8]
[1744349489099,1.28999,1551.6,1551.5,0.00967804]
[1744349489301,14.7429371,1551.6,1551.5,0.00967804]
[1744349489602,14.7429371,1551.6,1551.5,40.80967804]
[1744349490500,1.29033,1551.2,1551.1,25.25527265]
[1744349490907,11.4306771,1551.2,1551.1,25.25527265]
[1744349491197,13.9326771,1551.2,1551.1,25.25527265]
[1744349493307,13.9326771,1551.2,1551.0,61.07983811]
[1744349493308,1.29041,1551.1,1551.0,40.80967804]
[1744349493504,3.22624,1551.0,1550.5,25.25527265]
[1744349493800,1.29071,1550.8,1550.5,26.54616265]
[1744349494007,3.87394,1550.7,1550.6,40.8]
[1744349494405,10.8064871,1550.7,1550.6,40.8]
[1744349495702,10.8064871,1550.7,1550.5,25.26495069]
[1744349495703,1.29082,1550.6,1550.5,25.26495069]
[1744349495907,10.7734671,1550.6,1550.5,25.26495069]
[1744349496209,10.7734671,1550.6,1550.5,66.06495069]
[1744349496412,15.4704671,1550.6,1550.5,25.26495069]
[1744349496710,15.4704671,1550.6,1550.5,0.00967804]
[1744349496910,9.4826471,1550.6,1550.5,0.00967804]
[1744349497507,2.5501,1550.6,1550.5,0.00967804]
[1744349497707,1.695,1550.6,1550.5,1.30058804]
[1744349497905,5.29533,1550.9,1550.6,1.29082]
[1744349498206,9.9084371,1550.8,1550.6,1.6481]
[1744349498711,1.29074,1550.7,1550.6,1.6481]
[1744349498912,2.97594,1550.7,1550.6,1.6481]
[1744349499211,1.29082,1550.6,1550.5,0.00967804]
[1744349499406,2.97602,1550.6,1550.5,0.00967804]
[1744349499614,9.9085671,1550.6,1550.5,0.00967804]
[1744349499812,10.7312671,1550.6,1550.5,0.00967804]
[1744349500001,1.29099,1550.4,1550.3,40.8]
[1744349500314,4.49879,1550.4,1550.3,40.8]
[1744349500502,16.1293371,1550.4,1550.3,40.8]
[1744349500807,1.29124,1550.1,1550.0,25.25527265]
[1744349501108,10.1403471,1550.3,1550.0,26.53345114]
[1744349501305,9.86442363,1550.2,1550.1,40.8]
[1744349502111,8.57324363,1550.2,1550.1,40.8]
[1744349502411,9.86440363,1550.2,1550.1,40.8]
[1744349502712,1.64069653,1550.2,1550.1,40.8]
[1744349502912,2.93185653,1550.2,1550.1,40.8]
[1744349503111,9.86440363,1550.2,1550.1,40.8]
[1744349503311,11.52760363,1550.2,1550.1,40.8]
[1744349505313,8.57324363,1550.2,1550.1,40.8]
[1744349505607,9.86440363,1550.2,1550.1,40.8]
[1744349507208,8.57324363,1550.2,1550.1,40.8]
[1744349507415,0.00967804,1550.2,1550.1,47.09124]
[1744349508910,1.67347804,1550.2,1550.1,47.09124]
[1744349509814,1.67347804,1550.2,1550.1,42.09124]
[1744349512529,0.00967804,1550.2,1550.1,42.09124]
[1744349513010,1.30083804,1550.2,1550.1,42.09124]
[1744349513315,1.30083804,1550.2,1550.1,40.8]
[1744349514016,1.28551095,1550.2,1550.1,40.8]
[1744349514316,2.86783,1550.3,1550.1,42.09124]
[1744349514514,9.8003771,1550.3,1550.1,42.09124]
[1744349514715,1.5767,1550.2,1550.1,42.09124]
[1744349514915,2.86786,1550.2,1550.1,42.09124]
[1744349515327,2.86786,1550.2,1550.1,40.8]
[1744349515620,2.86786,1550.2,1550.1,42.09124]
[1744349515929,1.5767,1550.2,1550.1,42.09124]
[1744349518214,9.8004071,1550.2,1550.1,40.8]
[1744349518525,1.29132,1550.0,1549.9,6.00167804]
[1744349518727,8.2238671,1550.0,1549.9,5.98859653]
[1744349518926,8.2238671,1550.0,1549.9,46.78859653]
[1744349519221,9.9224671,1550.0,1549.9,46.78859653]
[1744349520324,13.1302671,1550.0,1549.9,40.8]
[1744349520625,1.29141,1549.9,1549.8,0.00967804]
[1744349520828,9.9225571,1549.9,1549.8,0.00967804]
[1744349521031,9.9225571,1549.9,1549.8,40.80967804]
[1744349521513,8.6311471,1549.9,1549.8,42.10116804]
[1744349521820,9.9225571,1549.9,1549.8,40.80967804]
[1744349522416,8.6311471,1549.9,1549.8,40.80967804]
[1744349522619,9.9225571,1549.9,1549.8,40.80967804]
[1744349523628,14.9225571,1549.9,1549.8,40.80967804]
[1744349523818,14.9225571,1549.9,1549.8,0.00967804]
[1744349524221,3.7247471,1549.8,1549.4,0.83884922]
[1744349524424,3.2078,1549.5,1549.3,1.29184]
[1744349524716,1.6081,1549.4,1549.2,1.664]
[1744349524927,1.6081,1549.4,1549.2,13.0086026]
[1744349524928,1.29185,1549.4,1549.2,13.0086026]
[1744349525122,3.7247471,1549.3,1549.2,13.0086026]
[1744349525324,3.7247471,1549.3,1549.2,54.64781241]
[1744349525523,3.7247471,1549.3,1549.2,54.6474537]
[1744349525920,5.0166571,1549.3,1549.2,53.3555037]
[1744349526121,5.0166571,1549.3,1549.2,50.8526526]
[1744349526321,3.7247471,1549.3,1549.2,50.8526526]
[1744349526517,3.7247471,1549.3,1549.2,52.1446426]
[1744349527026,5.0166571,1549.3,1549.2,50.8526526]
[1744349527427,5.8768571,1549.3,1549.2,50.8526526]
[1744349527625,4.5849471,1549.3,1549.2,52.1446426]
[1744349527935,4.5849471,1549.3,1549.2,42.09199]
[1744349528226,8.3157571,1549.3,1549.2,40.8]
[1744349529523,1.29199,1549.2,1549.1,0.00645206]
[1744349529730,9.8224371,1549.2,1549.1,0.00645206]
[1744349530131,9.8224371,1549.2,1549.1,40.80645206]
[1744349530628,8.5304471,1549.2,1549.1,40.80645206]
[1744349530828,8.5304471,1549.2,1549.1,42.09852206]
[1744349531235,9.8224371,1549.2,1549.1,40.80645206]
[1744349532533,14.8224371,1549.2,1549.1,40.80645206]
[1744349532734,14.8224371,1549.2,1549.1,0.00645206]